[Event "January 9 Late 2024"]
[Site "https://www.chess.com"]
[Date "2024.01.09"]
[Round "3"]
[White "Kujawski, Adam"]
[Black "Coca Cubillos, Jesus Alberto"]
[Result "1/2-1/2"]
[Board "195"]
[TimeControl "180+1"]
[WhiteFideId "1100920"]
[BlackFideId "4462912"]
[WhiteElo "2268"]
[BlackElo "2544"]
[WhiteTeam "POL"]
[BlackTeam "COL"]
[WhiteClock "0:00:00"]
[BlackClock "0:01:25"]

1. e4 {[%clk 0:02:57]}  g6 {[%clk 0:03:00]} 2. d4 {[%clk 0:02:56]}  Bg7 {[%clk 0:03:01]} 3. Nc3 {[%clk 0:02:56]}  d6 {[%clk 0:03:00]} 4. h3 {[%clk 0:02:55]}  Nh6 {[%clk 0:02:59]} 5. Be3 {[%clk 0:02:38]}  f6 {[%clk 0:02:58]} 6. Qd2 {[%clk 0:02:30]}  Nf7 {[%clk 0:02:58]} 7. d5 {[%clk 0:02:26]}  O-O {[%clk 0:02:58]} 8. f4 {[%clk 0:02:17]}  e5 {[%clk 0:02:58]} 9. dxe6 {[%clk 0:02:16]}  Bxe6 {[%clk 0:02:57]} 10. Nf3 {[%clk 0:02:13]}  Nc6 {[%clk 0:02:57]} 11. g4 {[%clk 0:01:44]}  f5 {[%clk 0:02:51]} 12. exf5 {[%clk 0:01:30]}  gxf5 {[%clk 0:02:51]} 13. g5 {[%clk 0:01:30]}  d5 {[%clk 0:02:44]} 14. O-O-O {[%clk 0:01:26]}  Qd7 {[%clk 0:02:38]} 15. Nxd5 {[%clk 0:01:19]}  Rad8 {[%clk 0:02:37]} 16. Nf6+ {[%clk 0:01:09]}  Bxf6 {[%clk 0:02:35]} 17. Qxd7 {[%clk 0:01:10]}  Bxb2+ {[%clk 0:02:34]} 18. Kxb2 {[%clk 0:01:02]}  Bxd7 {[%clk 0:02:33]} 19. Bc4 {[%clk 0:00:59]}  a6 {[%clk 0:02:26]} 20. a3 {[%clk 0:00:57]}  Rfe8 {[%clk 0:02:24]} 21. Rhe1 {[%clk 0:00:54]}  Kg7 {[%clk 0:02:23]} 22. Bd2 {[%clk 0:00:37]}  Nd6 {[%clk 0:02:16]} 23. Bc3+ {[%clk 0:00:36]}  Kg6 {[%clk 0:02:16]} 24. Bb3 {[%clk 0:00:24]}  Ne4 {[%clk 0:02:12]} 25. Be5 {[%clk 0:00:17]}  Bc8 {[%clk 0:01:56]} 26. Bxc7 {[%clk 0:00:16]}  Rxd1 {[%clk 0:01:56]} 27. Rxd1 {[%clk 0:00:17]}  h6 {[%clk 0:01:53]} 28. Ne5+ {[%clk 0:00:17]}  Nxe5 {[%clk 0:01:52]} 29. fxe5 {[%clk 0:00:16]}  hxg5 {[%clk 0:01:48]} 30. Rd8 {[%clk 0:00:14]}  Rxd8 {[%clk 0:01:47]} 31. Bxd8 {[%clk 0:00:15]}  Bd7 {[%clk 0:01:40]} 32. e6 {[%clk 0:00:14]}  Be8 {[%clk 0:01:40]} 33. e7 {[%clk 0:00:14]}  Nf2 {[%clk 0:01:39]} 34. Bd5 {[%clk 0:00:12]}  Nxh3 {[%clk 0:01:37]} 35. Bxb7 {[%clk 0:00:12]}  a5 {[%clk 0:01:37]} 36. Bxa5 {[%clk 0:00:11]}  f4 {[%clk 0:01:38]} 37. Kc3 {[%clk 0:00:08]}  g4 {[%clk 0:01:37]} 38. Bc7 {[%clk 0:00:08]}  f3 {[%clk 0:01:35]} 39. Bg3 {[%clk 0:00:08]}  Kf6 {[%clk 0:01:35]} 40. Kd3 {[%clk 0:00:07]}  Kxe7 {[%clk 0:01:34]} 41. Ke3 {[%clk 0:00:07]}  Ba4 {[%clk 0:01:31]} 42. Bc8 {[%clk 0:00:06]}  Bd7 {[%clk 0:01:30]} 43. Bxd7 {[%clk 0:00:06]}  Kxd7 {[%clk 0:01:31]} 44. a4 {[%clk 0:00:06]}  Kc6 {[%clk 0:01:31]} 45. c4 {[%clk 0:00:05]}  Ng5 {[%clk 0:01:30]} 46. Kf4 {[%clk 0:00:04]}  Nh3+ {[%clk 0:01:24]} 47. Kxg4 {[%clk 0:00:04]}  f2 {[%clk 0:01:25]} 48. Bxf2 {[%clk 0:00:03]}  Nxf2+ {[%clk 0:01:26]} 49. Kf3 {[%clk 0:00:03]}  Nd3 {[%clk 0:01:26]} 50. Ke4 {[%clk 0:00:04]}  Nb2 {[%clk 0:01:25]} 51. a5 {[%clk 0:00:04]}  Nxc4 {[%clk 0:01:25]} 52. Kd4 {[%clk 0:00:00]}  Nd6 {[%clk 0:01:25]} 1/2-1/2

[Event "January 9 Late 2024"]
[Site "https://www.chess.com"]
[Date "2024.01.09"]
[Round "3"]
[White "Aggelis, Nikolaos"]
[Black "Sami, Sama"]
[Result "1-0"]
[Board "196"]
[TimeControl "180+1"]
[WhiteFideId "4213220"]
[BlackFideId "4802926"]
[WhiteElo "2535"]
[BlackElo "2264"]
[WhiteTeam "GRE"]
[BlackTeam "IRQ"]
[WhiteClock "0:00:09"]
[BlackClock "0:00:00"]

1. Nf3 {[%clk 0:03:00]}  d5 {[%clk 0:02:59]} 2. c4 {[%clk 0:02:59]}  d4 {[%clk 0:02:57]} 3. d3 {[%clk 0:02:58]}  Nc6 {[%clk 0:02:56]} 4. g3 {[%clk 0:02:57]}  e5 {[%clk 0:02:56]} 5. Bg2 {[%clk 0:02:57]}  Bb4+ {[%clk 0:02:55]} 6. Bd2 {[%clk 0:02:56]}  a5 {[%clk 0:02:54]} 7. O-O {[%clk 0:02:57]}  Nf6 {[%clk 0:02:53]} 8. a3 {[%clk 0:02:57]}  Bd6 {[%clk 0:02:49]} 9. Bg5 {[%clk 0:02:54]}  h6 {[%clk 0:02:45]} 10. Bxf6 {[%clk 0:02:54]}  Qxf6 {[%clk 0:02:46]} 11. Nbd2 {[%clk 0:02:54]}  Bf5 {[%clk 0:02:39]} 12. Nh4 {[%clk 0:02:45]}  Bh7 {[%clk 0:02:38]} 13. Ne4 {[%clk 0:02:39]}  Qe7 {[%clk 0:02:31]} 14. Nxd6+ {[%clk 0:02:38]}  Qxd6 {[%clk 0:02:19]} 15. Qa4 {[%clk 0:02:33]}  O-O {[%clk 0:02:18]} 16. Qb5 {[%clk 0:02:13]}  Nd8 {[%clk 0:01:57]} 17. c5 {[%clk 0:02:04]}  Qa6 {[%clk 0:01:45]} 18. Qb3 {[%clk 0:01:50]}  c6 {[%clk 0:01:40]} 19. Bh3 {[%clk 0:01:32]}  Qb5 {[%clk 0:01:33]} 20. Qc2 {[%clk 0:01:29]}  Ne6 {[%clk 0:01:14]} 21. Rfc1 {[%clk 0:01:23]}  g5 {[%clk 0:01:11]} 22. Nf3 {[%clk 0:01:09]}  e4 {[%clk 0:01:04]} 23. dxe4 {[%clk 0:01:06]}  Rad8 {[%clk 0:01:03]} 24. Bf5 {[%clk 0:00:58]}  Rfe8 {[%clk 0:00:47]} 25. Bxh7+ {[%clk 0:00:57]}  Kxh7 {[%clk 0:00:47]} 26. Ne5 {[%clk 0:00:56]}  Kg7 {[%clk 0:00:44]} 27. Nd3 {[%clk 0:00:54]}  Nc7 {[%clk 0:00:34]} 28. e5 {[%clk 0:00:53]}  Re6 {[%clk 0:00:31]} 29. b4 {[%clk 0:00:52]}  axb4 {[%clk 0:00:29]} 30. axb4 {[%clk 0:00:53]}  Na6 {[%clk 0:00:29]} 31. Ra5 {[%clk 0:00:50]}  Nxb4 {[%clk 0:00:27]} 32. Rxb5 {[%clk 0:00:47]}  Nxc2 {[%clk 0:00:27]} 33. Rxb7 {[%clk 0:00:47]}  Na3 {[%clk 0:00:20]} 34. Ra1 {[%clk 0:00:47]}  Nc4 {[%clk 0:00:19]} 35. Raa7 {[%clk 0:00:47]}  Rf8 {[%clk 0:00:20]} 36. f4 {[%clk 0:00:42]}  gxf4 {[%clk 0:00:17]} 37. gxf4 {[%clk 0:00:43]}  Kg6 {[%clk 0:00:18]} 38. Rc7 {[%clk 0:00:39]}  f6 {[%clk 0:00:17]} 39. exf6 {[%clk 0:00:34]}  Rfxf6 {[%clk 0:00:17]} 40. Kf2 {[%clk 0:00:33]}  Re3 {[%clk 0:00:15]} 41. Rg7+ {[%clk 0:00:31]}  Kh5 {[%clk 0:00:15]} 42. Rad7 {[%clk 0:00:26]}  Re4 {[%clk 0:00:12]} 43. Kf3 {[%clk 0:00:21]}  Re3+ {[%clk 0:00:10]} 44. Kf2 {[%clk 0:00:20]}  Re4 {[%clk 0:00:11]} 45. Rg3 {[%clk 0:00:18]}  Ne5 {[%clk 0:00:09]} 46. Nxe5 {[%clk 0:00:18]}  Rxe5 {[%clk 0:00:09]} 47. Rf3 {[%clk 0:00:18]}  Ref5 {[%clk 0:00:09]} 48. e3 {[%clk 0:00:17]}  dxe3+ {[%clk 0:00:09]} 49. Kxe3 {[%clk 0:00:18]}  Rxc5 {[%clk 0:00:08]} 50. Kf2 {[%clk 0:00:18]}  Kg6 {[%clk 0:00:07]} 51. Rg3+ {[%clk 0:00:18]}  Kf5 {[%clk 0:00:08]} 52. Rf3 {[%clk 0:00:18]}  Rc4 {[%clk 0:00:07]} 53. Ke3 {[%clk 0:00:14]}  Rc3+ {[%clk 0:00:07]} 54. Kf2 {[%clk 0:00:14]}  Rxf3+ {[%clk 0:00:07]} 55. Kxf3 {[%clk 0:00:15]}  Re6 {[%clk 0:00:07]} 56. Rh7 {[%clk 0:00:13]}  Kg6 {[%clk 0:00:06]} 57. Rc7 {[%clk 0:00:12]}  Kf6 {[%clk 0:00:06]} 58. Kg4 {[%clk 0:00:12]}  Re4 {[%clk 0:00:06]} 59. Rxc6+ {[%clk 0:00:11]}  Kg7 {[%clk 0:00:06]} 60. Kf5 {[%clk 0:00:11]}  Re2 {[%clk 0:00:07]} 61. Rc7+ {[%clk 0:00:12]}  Kg8 {[%clk 0:00:07]} 62. h4 {[%clk 0:00:12]}  Rh2 {[%clk 0:00:07]} 63. Kg6 {[%clk 0:00:12]}  Kf8 {[%clk 0:00:06]} 64. h5 {[%clk 0:00:11]}  Ke8 {[%clk 0:00:06]} 65. Kxh6 {[%clk 0:00:11]}  Kf8 {[%clk 0:00:06]} 66. f5 {[%clk 0:00:10]}  Rf2 {[%clk 0:00:06]} 67. Kg6 {[%clk 0:00:10]}  Rg2+ {[%clk 0:00:01]} 68. Kf6 {[%clk 0:00:10]}  Kg8 {[%clk 0:00:01]} 69. h6 {[%clk 0:00:09]}  Kh8 {[%clk 0:00:00]} 70. h7 {[%clk 0:00:09]} 1-0

[Event "January 9 Late 2024"]
[Site "https://www.chess.com"]
[Date "2024.01.09"]
[Round "3"]
[White "Romero Ruscalleda, Josep"]
[Black "Smiech, Sara"]
[Result "0-1"]
[Board "197"]
[TimeControl "180+1"]
[WhiteFideId "2231859"]
[BlackFideId "91102863"]
[WhiteElo "2261"]
[BlackElo "2533"]
[WhiteTeam "ESP"]
[BlackTeam "POL"]
[WhiteClock "0:01:10"]
[BlackClock "0:01:49"]

1. e4 {[%clk 0:03:00]}  c5 {[%clk 0:02:58]} 2. c3 {[%clk 0:03:00]}  g6 {[%clk 0:02:59]} 3. d4 {[%clk 0:02:59]}  cxd4 {[%clk 0:02:59]} 4. cxd4 {[%clk 0:02:59]}  d5 {[%clk 0:03:00]} 5. Nc3 {[%clk 0:02:59]}  dxe4 {[%clk 0:02:59]} 6. Bc4 {[%clk 0:02:59]}  e6 {[%clk 0:02:57]} 7. d5 {[%clk 0:02:58]}  Bg7 {[%clk 0:02:54]} 8. Qb3 {[%clk 0:02:53]}  Nf6 {[%clk 0:02:51]} 9. dxe6 {[%clk 0:02:52]}  O-O {[%clk 0:02:51]} 10. exf7+ {[%clk 0:02:51]}  Kh8 {[%clk 0:02:51]} 11. Be3 {[%clk 0:02:50]}  Nc6 {[%clk 0:02:51]} 12. Rd1 {[%clk 0:02:46]}  Qc7 {[%clk 0:02:45]} 13. Qc2 {[%clk 0:02:44]}  Ne5 {[%clk 0:02:42]} 14. Be2 {[%clk 0:02:40]}  Bf5 {[%clk 0:02:40]} 15. h3 {[%clk 0:02:32]}  Qxf7 {[%clk 0:02:31]} 16. Bd4 {[%clk 0:02:22]}  Nd3+ {[%clk 0:02:29]} 17. Bxd3 {[%clk 0:02:08]}  exd3 {[%clk 0:02:29]} 18. Qd2 {[%clk 0:02:07]}  Rae8+ {[%clk 0:02:25]} 19. Be3 {[%clk 0:02:07]}  Bh6 {[%clk 0:02:15]} 20. Nf3 {[%clk 0:02:05]}  Ne4 {[%clk 0:01:59]} 21. Nxe4 {[%clk 0:01:47]}  Bxe4 {[%clk 0:01:58]} 22. Bxh6 {[%clk 0:01:40]}  Bxf3+ {[%clk 0:01:57]} 23. Kf1 {[%clk 0:01:34]}  Bxd1 {[%clk 0:01:53]} 24. Qxd1 {[%clk 0:01:25]}  Re2 {[%clk 0:01:51]} 25. Kg1 {[%clk 0:01:10]}  Qxf2+ {[%clk 0:01:49]} 0-1

[Event "January 9 Late 2024"]
[Site "https://www.chess.com"]
[Date "2024.01.09"]
[Round "3"]
[White "Soderstrom, Adrian"]
[Black "Bazzano, Sebastian"]
[Result "0-1"]
[Board "198"]
[TimeControl "180+1"]
[WhiteFideId "1745786"]
[BlackFideId "104566"]
[WhiteElo "2520"]
[BlackElo "2254"]
[WhiteTeam "SWE"]
[BlackTeam "ARG"]
[WhiteClock "0:01:04"]
[BlackClock "0:00:49"]

1. e4 {[%clk 0:02:53]}  e6 {[%clk 0:02:59]} 2. d4 {[%clk 0:02:53]}  d5 {[%clk 0:02:59]} 3. Nc3 {[%clk 0:02:54]}  dxe4 {[%clk 0:02:59]} 4. Nxe4 {[%clk 0:02:55]}  Bd7 {[%clk 0:02:59]} 5. Bd3 {[%clk 0:02:51]}  Bc6 {[%clk 0:02:59]} 6. Nf3 {[%clk 0:02:51]}  Bxe4 {[%clk 0:02:59]} 7. Bxe4 {[%clk 0:02:52]}  c6 {[%clk 0:02:59]} 8. O-O {[%clk 0:02:50]}  Nf6 {[%clk 0:02:59]} 9. Bd3 {[%clk 0:02:50]}  Bd6 {[%clk 0:02:59]} 10. Qe2 {[%clk 0:02:42]}  Nbd7 {[%clk 0:02:59]} 11. Ne5 {[%clk 0:02:31]}  O-O {[%clk 0:02:57]} 12. Bg5 {[%clk 0:02:29]}  Qc7 {[%clk 0:02:52]} 13. f4 {[%clk 0:02:27]}  Rfe8 {[%clk 0:02:43]} 14. Rf3 {[%clk 0:02:24]}  c5 {[%clk 0:02:41]} 15. Nxd7 {[%clk 0:02:23]}  Nxd7 {[%clk 0:02:27]} 16. Rh3 {[%clk 0:02:09]}  g6 {[%clk 0:02:17]} 17. Qf2 {[%clk 0:02:02]}  Nf8 {[%clk 0:01:52]} 18. Qh4 {[%clk 0:02:00]}  cxd4 {[%clk 0:01:45]} 19. Qh6 {[%clk 0:01:44]}  Be7 {[%clk 0:01:34]} 20. Rf1 {[%clk 0:01:38]}  Bxg5 {[%clk 0:01:31]} 21. fxg5 {[%clk 0:01:39]}  e5 {[%clk 0:01:31]} 22. Rhf3 {[%clk 0:01:37]}  Re7 {[%clk 0:01:30]} 23. Be4 {[%clk 0:01:35]}  Rd8 {[%clk 0:01:27]} 24. Qh3 {[%clk 0:01:33]}  Ne6 {[%clk 0:01:20]} 25. Rxf7 {[%clk 0:01:17]}  Nxg5 {[%clk 0:00:56]} 26. Rxe7 {[%clk 0:01:17]}  Nxh3+ {[%clk 0:00:56]} 27. gxh3 {[%clk 0:01:16]}  Qxe7 {[%clk 0:00:56]} 28. Rf3 {[%clk 0:01:11]}  Rf8 {[%clk 0:00:55]} 29. Bd5+ {[%clk 0:01:10]}  Kg7 {[%clk 0:00:54]} 30. Rg3 {[%clk 0:01:08]}  d3 {[%clk 0:00:51]} 31. cxd3 {[%clk 0:01:08]}  Qc5+ {[%clk 0:00:51]} 32. d4 {[%clk 0:01:05]}  Qxd4+ {[%clk 0:00:49]} 33. Re3 {[%clk 0:01:04]}  Qxe3+ {[%clk 0:00:49]} 34. Kh1 {[%clk 0:01:03]}  Rf1+ {[%clk 0:00:48]} 35. Kg2 {[%clk 0:01:04]}  Rg1# {[%clk 0:00:49]} 0-1

[Event "January 9 Late 2024"]
[Site "https://www.chess.com"]
[Date "2024.01.09"]
[Round "3"]
[White "Palencia Morales, Wilson Guillermo"]
[Black "Eggleston, Thomas A"]
[Result "1-0"]
[Board "199"]
[TimeControl "180+1"]
[WhiteFideId "4401859"]
[BlackFideId "412139"]
[WhiteElo "2516"]
[BlackElo "2253"]
[WhiteTeam "COL"]
[BlackTeam "ENG"]
[WhiteClock "0:00:34"]
[BlackClock "0:00:00"]

1. d4 {[%clk 0:03:00]}  e6 {[%clk 0:02:59]} 2. Nf3 {[%clk 0:02:58]}  f5 {[%clk 0:02:59]} 3. g3 {[%clk 0:02:54]}  Nf6 {[%clk 0:02:58]} 4. Bg2 {[%clk 0:02:54]}  Be7 {[%clk 0:02:58]} 5. O-O {[%clk 0:02:52]}  O-O {[%clk 0:02:59]} 6. c4 {[%clk 0:02:52]}  d6 {[%clk 0:02:58]} 7. Nc3 {[%clk 0:02:52]}  Ne4 {[%clk 0:02:59]} 8. Qc2 {[%clk 0:02:50]}  Nxc3 {[%clk 0:02:59]} 9. Qxc3 {[%clk 0:02:51]}  a5 {[%clk 0:02:59]} 10. b3 {[%clk 0:02:47]}  Nc6 {[%clk 0:02:58]} 11. Bb2 {[%clk 0:02:47]}  Bf6 {[%clk 0:02:58]} 12. Rad1 {[%clk 0:02:45]}  Qe8 {[%clk 0:02:58]} 13. a3 {[%clk 0:02:42]}  e5 {[%clk 0:02:58]} 14. dxe5 {[%clk 0:02:41]}  dxe5 {[%clk 0:02:55]} 15. Qc2 {[%clk 0:02:33]}  g5 {[%clk 0:02:34]} 16. e3 {[%clk 0:02:13]}  Be6 {[%clk 0:02:30]} 17. Rd2 {[%clk 0:02:02]}  Qh5 {[%clk 0:02:14]} 18. Ne1 {[%clk 0:01:42]}  e4 {[%clk 0:01:59]} 19. f4 {[%clk 0:01:32]}  g4 {[%clk 0:01:43]} 20. Rff2 {[%clk 0:01:27]}  Rae8 {[%clk 0:01:28]} 21. Bxf6 {[%clk 0:01:23]}  Rxf6 {[%clk 0:01:27]} 22. Qc3 {[%clk 0:01:21]}  Rh6 {[%clk 0:01:25]} 23. Bf1 {[%clk 0:01:21]}  b6 {[%clk 0:01:15]} 24. Nc2 {[%clk 0:01:21]}  Qf7 {[%clk 0:01:07]} 25. b4 {[%clk 0:01:16]}  axb4 {[%clk 0:01:06]} 26. axb4 {[%clk 0:01:17]}  Qg7 {[%clk 0:01:01]} 27. Nd4 {[%clk 0:01:08]}  Nxd4 {[%clk 0:00:58]} 28. Qxd4 {[%clk 0:01:02]}  Qxd4 {[%clk 0:00:51]} 29. Rxd4 {[%clk 0:01:03]}  Ra8 {[%clk 0:00:47]} 30. Rfd2 {[%clk 0:01:03]}  Rf6 {[%clk 0:00:46]} 31. c5 {[%clk 0:00:58]}  bxc5 {[%clk 0:00:42]} 32. bxc5 {[%clk 0:00:58]}  Rff8 {[%clk 0:00:41]} 33. Bc4 {[%clk 0:00:54]}  Bxc4 {[%clk 0:00:40]} 34. Rxc4 {[%clk 0:00:54]}  Ra1+ {[%clk 0:00:24]} 35. Kg2 {[%clk 0:00:54]}  Rb8 {[%clk 0:00:23]} 36. h3 {[%clk 0:00:53]}  h5 {[%clk 0:00:22]} 37. hxg4 {[%clk 0:00:48]}  hxg4 {[%clk 0:00:22]} 38. Rcd4 {[%clk 0:00:47]}  Kf7 {[%clk 0:00:18]} 39. Rd7+ {[%clk 0:00:46]}  Ke6 {[%clk 0:00:18]} 40. Rxc7 {[%clk 0:00:46]}  Ra6 {[%clk 0:00:10]} 41. Rcd7 {[%clk 0:00:44]}  Rb3 {[%clk 0:00:04]} 42. R7d6+ {[%clk 0:00:44]}  Rxd6 {[%clk 0:00:04]} 43. Rxd6+ {[%clk 0:00:45]}  Ke7 {[%clk 0:00:04]} 44. Kf2 {[%clk 0:00:45]}  Rc3 {[%clk 0:00:04]} 45. Rd5 {[%clk 0:00:45]}  Ke6 {[%clk 0:00:04]} 46. Re5+ {[%clk 0:00:45]}  Kf6 {[%clk 0:00:04]} 47. Ke2 {[%clk 0:00:46]}  Rc2+ {[%clk 0:00:05]} 48. Kd1 {[%clk 0:00:46]}  Rc3 {[%clk 0:00:04]} 49. Kd2 {[%clk 0:00:46]}  Rd3+ {[%clk 0:00:03]} 50. Kc2 {[%clk 0:00:42]}  Rxe3 {[%clk 0:00:03]} 51. c6 {[%clk 0:00:43]}  Re2+ {[%clk 0:00:03]} 52. Kd1 {[%clk 0:00:40]}  Ra2 {[%clk 0:00:02]} 53. Rd5 {[%clk 0:00:38]}  Ra6 {[%clk 0:00:01]} 54. Rc5 {[%clk 0:00:38]}  Ra8 {[%clk 0:00:01]} 55. c7 {[%clk 0:00:38]}  Rc8 {[%clk 0:00:02]} 56. Ke2 {[%clk 0:00:38]}  Ke6 {[%clk 0:00:02]} 57. Ke3 {[%clk 0:00:38]}  Kd6 {[%clk 0:00:02]} 58. Rxf5 {[%clk 0:00:39]}  Rxc7 {[%clk 0:00:02]} 59. Kxe4 {[%clk 0:00:34]}  Rc3 {[%clk 0:00:02]} 60. Rd5+ {[%clk 0:00:34]}  Kc6 {[%clk 0:00:03]} 61. Rd3 {[%clk 0:00:34]}  Rc4+ {[%clk 0:00:02]} 62. Kf5 {[%clk 0:00:34]}  Rc5+ {[%clk 0:00:00]} 63. Kxg4 {[%clk 0:00:34]} 1-0

[Event "January 9 Late 2024"]
[Site "https://www.chess.com"]
[Date "2024.01.10"]
[Round "3"]
[White "Senft, Sean"]
[Black "Vargas Rodriguez, Wilver"]
[Result "1-0"]
[Board "200"]
[TimeControl "180+1"]
[WhiteFideId "2044960"]
[BlackFideId "3509672"]
[WhiteElo "2514"]
[BlackElo "2252"]
[WhiteTeam "USA"]
[BlackTeam "CUB"]
[WhiteClock "0:02:00"]
[BlackClock "0:01:13"]

1. d4 {[%clk 0:03:00]}  Nf6 {[%clk 0:02:55]} 2. c4 {[%clk 0:03:01]}  c5 {[%clk 0:02:55]} 3. d5 {[%clk 0:03:01]}  b5 {[%clk 0:02:55]} 4. Qc2 {[%clk 0:03:01]}  g6 {[%clk 0:02:54]} 5. e4 {[%clk 0:03:02]}  d6 {[%clk 0:02:54]} 6. f4 {[%clk 0:03:02]}  bxc4 {[%clk 0:02:53]} 7. Nf3 {[%clk 0:03:03]}  Bg7 {[%clk 0:02:53]} 8. Bxc4 {[%clk 0:03:03]}  O-O {[%clk 0:02:53]} 9. O-O {[%clk 0:03:04]}  Ba6 {[%clk 0:02:52]} 10. Bxa6 {[%clk 0:03:01]}  Nxa6 {[%clk 0:02:53]} 11. Nc3 {[%clk 0:02:57]}  Nb4 {[%clk 0:02:52]} 12. Qe2 {[%clk 0:02:56]}  e6 {[%clk 0:02:49]} 13. a3 {[%clk 0:02:56]}  Nxe4 {[%clk 0:02:39]} 14. Qxe4 {[%clk 0:02:42]}  Bxc3 {[%clk 0:02:29]} 15. axb4 {[%clk 0:02:32]}  Bxb4 {[%clk 0:02:17]} 16. dxe6 {[%clk 0:02:32]}  Qf6 {[%clk 0:02:13]} 17. f5 {[%clk 0:02:22]}  gxf5 {[%clk 0:01:32]} 18. exf7+ {[%clk 0:02:04]}  Rxf7 {[%clk 0:01:30]} 19. Qd5 {[%clk 0:02:03]}  Re8 {[%clk 0:01:13]} 20. Rxa7 {[%clk 0:02:00]} 1-0

[Event "January 9 Late 2024"]
[Site "https://www.chess.com"]
[Date "2024.01.09"]
[Round "3"]
[White "D`Arruda, Ricardo D."]
[Black "Rodriguez Dominguez, Melissa"]
[Result "1-0"]
[Board "204"]
[TimeControl "180+1"]
[WhiteFideId "100692"]
[BlackFideId "3517560"]
[WhiteElo "2485"]
[BlackElo "2244"]
[WhiteTeam "ARG"]
[BlackTeam "CUB"]
[WhiteClock "0:00:25"]
[BlackClock "0:00:12"]

1. d4 {[%clk 0:03:00]}  d5 {[%clk 0:02:59]} 2. Nf3 {[%clk 0:03:00]}  Nf6 {[%clk 0:02:58]} 3. c4 {[%clk 0:03:00]}  c6 {[%clk 0:02:57]} 4. e3 {[%clk 0:03:00]}  e6 {[%clk 0:02:51]} 5. Nc3 {[%clk 0:03:00]}  Nbd7 {[%clk 0:02:49]} 6. Bd3 {[%clk 0:03:00]}  Bd6 {[%clk 0:02:48]} 7. O-O {[%clk 0:02:59]}  O-O {[%clk 0:02:47]} 8. e4 {[%clk 0:03:00]}  dxe4 {[%clk 0:02:45]} 9. Nxe4 {[%clk 0:03:01]}  Nxe4 {[%clk 0:02:44]} 10. Bxe4 {[%clk 0:03:02]}  h6 {[%clk 0:02:45]} 11. Bc2 {[%clk 0:02:58]}  e5 {[%clk 0:02:42]} 12. Qd3 {[%clk 0:02:51]}  f5 {[%clk 0:02:37]} 13. dxe5 {[%clk 0:02:48]}  Nxe5 {[%clk 0:02:37]} 14. Qc3 {[%clk 0:02:39]}  Nxf3+ {[%clk 0:02:23]} 15. Qxf3 {[%clk 0:02:40]}  Qh4 {[%clk 0:02:22]} 16. g3 {[%clk 0:02:38]}  Qf6 {[%clk 0:02:15]} 17. Rd1 {[%clk 0:02:31]}  Be5 {[%clk 0:01:54]} 18. Rb1 {[%clk 0:02:12]}  Be6 {[%clk 0:01:51]} 19. b3 {[%clk 0:02:11]}  Rad8 {[%clk 0:01:20]} 20. Bf4 {[%clk 0:02:08]}  Bxf4 {[%clk 0:01:11]} 21. Qxf4 {[%clk 0:02:09]}  g5 {[%clk 0:01:11]} 22. Qe3 {[%clk 0:01:57]}  Rfe8 {[%clk 0:00:54]} 23. Rxd8 {[%clk 0:01:41]}  Qxd8 {[%clk 0:00:47]} 24. Qxa7 {[%clk 0:01:36]}  Qd2 {[%clk 0:00:46]} 25. Qxb7 {[%clk 0:00:37]}  Qxc2 {[%clk 0:00:45]} 26. Re1 {[%clk 0:00:38]}  Qd2 {[%clk 0:00:33]} 27. Re5 {[%clk 0:00:37]}  Qd1+ {[%clk 0:00:28]} 28. Kg2 {[%clk 0:00:37]}  Bd5+ {[%clk 0:00:25]} 29. cxd5 {[%clk 0:00:33]}  Rxe5 {[%clk 0:00:24]} 30. Qb8+ {[%clk 0:00:33]}  Kf7 {[%clk 0:00:23]} 31. Qxe5 {[%clk 0:00:33]}  cxd5 {[%clk 0:00:17]} 32. Qxf5+ {[%clk 0:00:33]}  Kg7 {[%clk 0:00:17]} 33. Qe5+ {[%clk 0:00:33]}  Kf7 {[%clk 0:00:17]} 34. b4 {[%clk 0:00:27]}  d4 {[%clk 0:00:17]} 35. Qe4 {[%clk 0:00:24]}  d3 {[%clk 0:00:16]} 36. Qf3+ {[%clk 0:00:24]}  Qxf3+ {[%clk 0:00:16]} 37. Kxf3 {[%clk 0:00:25]}  Ke6 {[%clk 0:00:12]} 38. Ke3 {[%clk 0:00:25]} 1-0

[Event "January 9 Late 2024"]
[Site "https://www.chess.com"]
[Date "2024.01.09"]
[Round "3"]
[White "Chemin, Justo Reinaldo"]
[Black "Hungaski, Robert"]
[Result "0-1"]
[Board "205"]
[TimeControl "180+1"]
[WhiteFideId "2101580"]
[BlackFideId "2021030"]
[WhiteElo "2234"]
[BlackElo "2478"]
[WhiteTeam "BRA"]
[BlackTeam "USA"]
[WhiteClock "0:00:08"]
[BlackClock "0:00:34"]

1. e4 {[%clk 0:03:00]}  e5 {[%clk 0:02:58]} 2. Nf3 {[%clk 0:02:59]}  Nc6 {[%clk 0:02:58]} 3. Bb5 {[%clk 0:02:59]}  Nd4 {[%clk 0:02:58]} 4. Bc4 {[%clk 0:02:57]}  Nxf3+ {[%clk 0:02:45]} 5. Qxf3 {[%clk 0:02:55]}  Qf6 {[%clk 0:02:46]} 6. Qxf6 {[%clk 0:02:52]}  Nxf6 {[%clk 0:02:46]} 7. d3 {[%clk 0:02:51]}  c6 {[%clk 0:02:46]} 8. Nc3 {[%clk 0:02:49]}  Bb4 {[%clk 0:02:43]} 9. Bd2 {[%clk 0:02:46]}  d6 {[%clk 0:02:39]} 10. a3 {[%clk 0:02:46]}  Ba5 {[%clk 0:02:38]} 11. b4 {[%clk 0:02:43]}  Bc7 {[%clk 0:02:38]} 12. O-O {[%clk 0:02:40]}  b5 {[%clk 0:02:29]} 13. Bb3 {[%clk 0:02:39]}  a5 {[%clk 0:02:29]} 14. f4 {[%clk 0:02:29]}  a4 {[%clk 0:02:22]} 15. Ba2 {[%clk 0:02:28]}  Bb6+ {[%clk 0:02:22]} 16. Kh1 {[%clk 0:02:27]}  Be6 {[%clk 0:02:09]} 17. Bxe6 {[%clk 0:02:22]}  fxe6 {[%clk 0:02:10]} 18. fxe5 {[%clk 0:02:11]}  dxe5 {[%clk 0:02:11]} 19. h3 {[%clk 0:02:09]}  O-O {[%clk 0:02:01]} 20. Rf3 {[%clk 0:01:59]}  Nh5 {[%clk 0:02:00]} 21. Kh2 {[%clk 0:01:47]}  Rxf3 {[%clk 0:01:59]} 22. gxf3 {[%clk 0:01:47]}  Rf8 {[%clk 0:01:59]} 23. Rf1 {[%clk 0:01:46]}  Nf4 {[%clk 0:01:47]} 24. Bxf4 {[%clk 0:01:43]}  exf4 {[%clk 0:01:47]} 25. Ne2 {[%clk 0:01:42]}  e5 {[%clk 0:01:36]} 26. Rd1 {[%clk 0:01:37]}  Rd8 {[%clk 0:01:35]} 27. c3 {[%clk 0:01:37]}  Be3 {[%clk 0:01:33]} 28. d4 {[%clk 0:01:33]}  Kf7 {[%clk 0:01:33]} 29. Kg2 {[%clk 0:01:12]}  Ke6 {[%clk 0:01:27]} 30. Kf1 {[%clk 0:01:01]}  g5 {[%clk 0:01:26]} 31. Ke1 {[%clk 0:01:00]}  h5 {[%clk 0:01:26]} 32. dxe5 {[%clk 0:00:57]}  Bf2+ {[%clk 0:01:26]} 33. Kxf2 {[%clk 0:00:56]}  Rxd1 {[%clk 0:01:27]} 34. Nd4+ {[%clk 0:00:55]}  Kxe5 {[%clk 0:01:24]} 35. Nxc6+ {[%clk 0:00:55]}  Kf6 {[%clk 0:01:21]} 36. Nd4 {[%clk 0:00:51]}  Rd2+ {[%clk 0:01:20]} 37. Kf1 {[%clk 0:00:48]}  Rd3 {[%clk 0:01:20]} 38. Nxb5 {[%clk 0:00:48]}  Rxf3+ {[%clk 0:01:20]} 39. Kg2 {[%clk 0:00:48]}  Re3 {[%clk 0:01:16]} 40. c4 {[%clk 0:00:43]}  g4 {[%clk 0:01:16]} 41. hxg4 {[%clk 0:00:42]}  hxg4 {[%clk 0:01:16]} 42. c5 {[%clk 0:00:42]}  Re2+ {[%clk 0:01:15]} 43. Kf1 {[%clk 0:00:42]}  Rd2 {[%clk 0:01:06]} 44. Nd6 {[%clk 0:00:33]}  g3 {[%clk 0:01:01]} 45. e5+ {[%clk 0:00:29]}  Ke6 {[%clk 0:00:56]} 46. Ne4 {[%clk 0:00:29]}  g2+ {[%clk 0:00:49]} 47. Kg1 {[%clk 0:00:27]}  Rc2 {[%clk 0:00:49]} 48. b5 {[%clk 0:00:19]}  Kxe5 {[%clk 0:00:47]} 49. Ng5 {[%clk 0:00:15]}  Kf5 {[%clk 0:00:42]} 50. Nf3 {[%clk 0:00:15]}  Kg4 {[%clk 0:00:40]} 51. Ne5+ {[%clk 0:00:14]}  Kg3 {[%clk 0:00:39]} 52. Nd3 {[%clk 0:00:08]}  Ra2 {[%clk 0:00:34]} 0-1